bitfinex-derivatives/quotes_BTCF0:USTF0_20250426
["timestamp","ask_amount","ask_price","bid_price","bid_amount"]
[1745699297948,0.6912639,94281.0,94280.0,0.39406504]
[1745699298149,1.0520639,94281.0,94280.0,0.39406504]
[1745699311466,0.6912639,94281.0,94280.0,0.39406504]
[1745699311767,1.0520639,94281.0,94280.0,0.39406504]
[1745699314068,1.0520639,94281.0,94280.0,0.18199894]
[1745699315066,1.0520639,94281.0,94280.0,0.39406504]
[1745699316059,1.0520639,94281.0,94280.0,0.18199894]
[1745699320357,1.4128639,94281.0,94280.0,0.18199894]
[1745699323466,0.6912639,94281.0,94280.0,0.18199894]
[1745699323765,1.4128639,94281.0,94280.0,0.18199894]
[1745699326771,0.6912639,94281.0,94280.0,0.18199894]
[1745699326970,1.4128639,94281.0,94280.0,0.18199894]
[1745699327574,1.4128639,94281.0,94261.0,0.13]
[1745699327575,0.0530169,94280.0,94261.0,0.13]
[1745699327770,0.3608,94268.0,94253.0,0.0309]
[1745699327970,0.5729111,94260.0,94259.0,0.31508564]
[1745699328167,0.8529111,94260.0,94259.0,0.33457922]
[1745699328671,0.8529111,94260.0,94259.0,0.34254723]
[1745699329069,1.0209111,94260.0,94259.0,0.34254723]
[1745699329270,1.0209111,94260.0,94259.0,0.55466063]
[1745699329470,1.0209111,94260.0,94259.0,0.12746159]
[1745699329964,1.0209111,94260.0,94259.0,0.18856159]
[1745699330165,1.0219111,94260.0,94259.0,0.18856159]
[1745699330872,1.0219111,94260.0,94259.0,0.40067499]
[1745699335376,0.6611111,94260.0,94259.0,0.40067499]
[1745699335772,1.0219111,94260.0,94259.0,0.40067499]
[1745699336573,0.6611111,94260.0,94259.0,0.40067499]
[1745699336872,1.0219111,94260.0,94259.0,0.40067499]
[1745699337873,0.6611111,94260.0,94259.0,0.40067499]
[1745699338178,1.0219111,94260.0,94259.0,0.40067499]
[1745699338671,0.6611111,94260.0,94259.0,0.40067499]
[1745699338876,1.0219111,94260.0,94259.0,0.40067499]
[1745699339874,0.6611111,94260.0,94259.0,0.40067499]
[1745699340070,1.0219111,94260.0,94259.0,0.40067499]
[1745699340467,0.8098,94260.0,94259.0,0.40067499]
[1745699340669,1.0219111,94260.0,94259.0,0.40067499]
[1745699341066,0.8539111,94260.0,94259.0,0.40067499]
[1745699341267,0.6418,94260.0,94259.0,0.50676699]
[1745699342976,0.2120789,94275.0,94274.0,0.2120751]
[1745699343274,0.4750802,94275.0,94274.0,0.3720751]
[1745699344280,0.4790802,94275.0,94274.0,0.3720751]
[1745699344584,0.5121802,94275.0,94274.0,0.3720751]
[1745699345075,0.6801802,94275.0,94274.0,0.3720751]
[1745699345880,0.6781802,94275.0,94274.0,0.3720751]
[1745699346777,0.4731,94275.0,94274.0,0.3720751]
[1745699347085,0.6851774,94275.0,94274.0,0.3720751]
[1745699347481,0.4731,94275.0,94274.0,0.3720751]
[1745699348184,0.3051,94275.0,94274.0,0.3720751]
[1745699348885,0.3031,94275.0,94274.0,0.3720751]
[1745699352391,0.3031,94275.0,94274.0,0.38777598]
[1745699354192,0.3031,94275.0,94274.0,0.38785824]
[1745699357695,0.3031,94275.0,94274.0,0.38787538]
[1745699360086,0.3031,94275.0,94274.0,0.41837538]
[1745699361586,0.3031,94275.0,94274.0,0.45067538]
[1745699366194,0.4711,94275.0,94274.0,0.45067538]
[1745699367187,0.4711,94275.0,94274.0,0.45078883]
[1745699368392,0.4711,94275.0,94274.0,0.45086596]
[1745699368592,0.4711,94275.0,94274.0,0.41856596]
[1745699370791,0.4711,94275.0,94274.0,0.41875267]
[1745699371488,0.4711,94275.0,94274.0,0.48487267]
[1745699372088,0.3031,94275.0,94274.0,0.48487267]
[1745699374500,0.3031,94275.0,94274.0,0.48497339]
[1745699376489,0.3031,94275.0,94274.0,0.48516597]
[1745699380203,0.3031,94275.0,94274.0,0.48526853]
[1745699380799,0.3353,94275.0,94274.0,0.48526853]
[1745699381305,0.5033,94275.0,94274.0,0.48526853]
[1745699384702,0.5033,94275.0,94274.0,0.45476853]
[1745699395315,0.5033,94275.0,94274.0,0.50988971]
[1745699395813,0.5033,94275.0,94274.0,0.49331628]
[1745699396205,0.5033,94275.0,94274.0,0.50948401]
[1745699396404,0.5033,94275.0,94274.0,0.49331628]
[1745699396605,0.5033,94275.0,94274.0,0.50948401]
[1745699397413,0.5033,94275.0,94274.0,0.50949278]
[1745699397813,0.5033,94275.0,94274.0,0.4543716]
[1745699398313,0.5033,94275.0,94274.0,0.45437162]
[1745699398507,0.5033,94275.0,94274.0,0.4381951]
[1745699398709,0.5033,94275.0,94274.0,0.45437162]
[1745699398907,0.5033,94275.0,94274.0,0.4381951]
[1745699399408,0.5033,94275.0,94274.0,0.45435547]
[1745699400619,0.5033,94275.0,94274.0,0.45421872]
[1745699405710,0.5033,94275.0,94274.0,0.45435955]
[1745699409605,0.5033,94275.0,94274.0,0.50947842]
[1745699413010,0.5033,94275.0,94274.0,0.45435955]
[1745699413409,0.5033,94275.0,94274.0,0.45451039]
[1745699415407,0.5033,94275.0,94274.0,0.50968257]
[1745699417315,0.5033,94275.0,94274.0,0.45456443]
[1745699418308,0.5033,94275.0,94274.0,0.48716443]
[1745699420821,0.5033,94275.0,94274.0,0.4707951]
[1745699421025,0.5033,94275.0,94274.0,0.48736862]
[1745699422817,0.5033,94275.0,94274.0,0.51766862]
[1745699424623,0.2511,94275.0,94274.0,0.51766862]
[1745699425119,0.4611,94275.0,94274.0,0.57278312]
[1745699425319,0.2931,94275.0,94274.0,0.57278312]
[1745699425619,0.2931,94275.0,94274.0,0.51766862]
[1745699426417,0.2931,94275.0,94274.0,0.51766762]
[1745699427923,0.2931,94275.0,94274.0,0.51866762]
[1745699429327,0.2931,94275.0,94274.0,0.51858762]
[1745699431131,0.4611,94275.0,94274.0,0.51858762]
[1745699433934,0.4611,94275.0,94274.0,0.51858775]
[1745699435633,0.4611,94275.0,94274.0,0.5736656]
[1745699439530,0.4611,94275.0,94274.0,0.57366499]
[1745699441737,0.4611,94275.0,94274.0,0.45568714]
[1745699443237,0.4611,94275.0,94274.0,0.455688]
[1745699443837,0.6731774,94275.0,94274.0,0.1775729]
[1745699444030,0.6731774,94275.0,94274.0,0.2436129]
[1745699444534,0.6731774,94275.0,94274.0,0.4556925]
[1745699445037,0.6731774,94275.0,94274.0,0.4391196]
[1745699445240,0.6731774,94275.0,94274.0,0.45569398]
[1745699445839,0.6731774,94275.0,94274.0,0.24361438]
[1745699446947,0.6731774,94275.0,94274.0,0.45569398]
[1745699448845,0.6731774,94275.0,94274.0,0.45556089]
[1745699449945,1.0339774,94275.0,94274.0,0.45556089]
[1745699451738,0.6731774,94275.0,94274.0,0.45556089]
[1745699451939,1.0339774,94275.0,94274.0,0.45556089]
[1745699452544,1.0339774,94275.0,94274.0,0.4553756]
[1745699452844,0.6731774,94275.0,94274.0,0.4553756]
[1745699453046,1.0339774,94275.0,94274.0,0.4553756]
[1745699453245,1.0349774,94275.0,94274.0,0.4543756]
[1745699453648,1.0339774,94275.0,94274.0,0.4543756]
[1745699453848,1.0349774,94275.0,94274.0,0.4543756]
[1745699456145,0.6741774,94275.0,94274.0,0.4543756]
[1745699456448,1.0349774,94275.0,94274.0,0.4543756]
[1745699459439,1.0349774,94275.0,94274.0,0.4381196]
[1745699459640,1.0349774,94275.0,94274.0,0.45441129]
[1745699463253,1.0349774,94275.0,94274.0,0.45469423]
[1745699463648,0.6741774,94275.0,94274.0,0.45469423]
[1745699463862,1.0349774,94275.0,94274.0,0.45469423]
[1745699466155,0.6741774,94275.0,94274.0,0.45469423]
[1745699466360,1.0349774,94275.0,94274.0,0.45469423]
[1745699469754,0.6741774,94275.0,94274.0,0.45469423]
[1745699470058,1.0349774,94275.0,94274.0,0.45469423]
[1745699473962,1.0349774,94275.0,94274.0,0.48609423]
[1745699478565,0.6741774,94275.0,94274.0,0.48609423]
[1745699478758,1.0349774,94275.0,94274.0,0.48609423]
[1745699479464,0.6741774,94275.0,94274.0,0.48609423]
[1745699479665,1.0349774,94275.0,94274.0,0.48609423]
[1745699480167,1.0349774,94275.0,94274.0,0.45469423]
[1745699483369,1.0349774,94275.0,94274.0,0.38865423]
[1745699483869,0.8249,94275.0,94269.0,0.22806328]
[1745699484068,0.8249,94275.0,94269.0,0.18206328]
[1745699484069,0.2120886,94270.0,94269.0,0.18206328]
[1745699484266,0.2121066,94262.0,94259.0,0.02746159]
[1745699484465,0.8529066,94262.0,94261.0,0.35508564]
[1745699484664,0.8529066,94262.0,94261.0,0.56719454]
[1745699485057,0.8847066,94262.0,94261.0,0.56719454]
[1745699485261,1.0527066,94262.0,94261.0,0.56719454]
[1745699485669,1.0527066,94262.0,94261.0,0.14]
[1745699486063,1.0527066,94262.0,94261.0,0.3521089]
[1745699486984,1.0537066,94262.0,94261.0,0.3521089]
[1745699495675,1.0219066,94262.0,94261.0,0.3521089]
[1745699495879,1.0219066,94262.0,94261.0,0.36831138]
[1745699496074,1.0219066,94262.0,94261.0,0.3521089]
[1745699496283,0.8098,94262.0,94261.0,0.43115102]
[1745699496675,0.8424,94262.0,94261.0,0.43115102]
[1745699496876,1.0545066,94262.0,94261.0,0.43115102]
[1745699497083,0.6937066,94262.0,94261.0,0.43115102]
[1745699498683,0.6937066,94262.0,94261.0,0.4310711]
[1745699504294,0.6937066,94262.0,94261.0,0.43142779]
[1745699505496,0.6937066,94262.0,94261.0,0.49742779]
[1745699517490,0.6937066,94262.0,94261.0,0.46512779]
[1745699519200,0.6937066,94262.0,94261.0,0.46517357]
[1745699522502,0.6937066,94262.0,94261.0,0.46518544]
[1745699524004,1.0545066,94262.0,94261.0,0.46518544]
[1745699524398,1.0545066,94262.0,94261.0,0.43468544]
[1745699526106,1.0545066,94262.0,94261.0,0.43468616]
[1745699531408,0.6937066,94262.0,94261.0,0.43468616]
[1745699531709,1.0545066,94262.0,94261.0,0.43468616]
[1745699538506,1.0545066,94262.0,94261.0,0.46658616]
[1745699543313,0.8424,94262.0,94261.0,0.46658616]
[1745699543515,0.4816,94262.0,94261.0,0.46654616]
[1745699543715,0.2016,94262.0,94261.0,0.57263416]
[1745699544017,0.0311,94269.0,94268.0,0.2120931]
[1745699544321,0.3011,94269.0,94268.0,0.36867036]
[1745699544710,0.3011,94269.0,94268.0,0.43207036]
[1745699544918,0.3011,94269.0,94268.0,0.49803036]
[1745699545110,0.4691,94269.0,94268.0,0.49803036]
[1745699546715,0.4691,94269.0,94268.0,0.49782917]
[1745699548321,0.4691,94269.0,94268.0,0.18917607]
[1745699548524,0.4691,94269.0,94268.0,0.46722917]
[1745699548822,0.4691,94269.0,94268.0,0.46699561]
[1745699549022,0.5317,94269.0,94268.0,0.46699561]
[1745699550516,0.5317,94269.0,94268.0,0.46704059]
[1745699552317,0.5317,94269.0,94268.0,0.46741428]
[1745699558020,0.5317,94269.0,94268.0,0.46742836]
[1745699570940,0.5317,94269.0,94268.0,0.46742839]
[1745699574530,0.5317,94269.0,94268.0,0.46742827]
[1745699579837,0.5317,94269.0,94268.0,0.46742825]
[1745699581046,0.5011,94269.0,94268.0,0.46742825]
[1745699586141,0.5342,94269.0,94268.0,0.46742825]
[1745699589651,0.5342,94269.0,94268.0,0.52254547]
[1745699589848,0.5342,94269.0,94268.0,0.46742825]
[1745699602261,0.5342,94269.0,94268.0,0.4508531]
[1745699602462,0.5342,94269.0,94268.0,0.46742826]
[1745699604162,0.5342,94269.0,94268.0,0.46742824]
[1745699605063,0.5342,94269.0,94268.0,0.5225454]
[1745699607969,0.5342,94269.0,94268.0,0.52254542]
[1745699611669,0.5342,94269.0,94268.0,0.52254543]
[1745699612964,0.7462909,94269.0,94268.0,0.52254543]
[1745699613367,0.7462909,94269.0,94268.0,0.46742827]
[1745699613571,0.5342,94269.0,94268.0,0.46742834]
[1745699614472,0.5342,94269.0,94268.0,0.4674283]
[1745699615373,0.5342,94269.0,94268.0,0.46742831]
[1745699616565,0.5342,94269.0,94268.0,0.62972555]
[1745699620075,0.5011,94269.0,94268.0,0.46742831]
[1745699633192,0.50094384,94269.0,94268.0,0.46742831]
[1745699633385,0.50094384,94269.0,94268.0,0.62972555]
[1745699639893,0.50094384,94269.0,94268.0,0.62972559]
[1745699640093,0.50094384,94269.0,94268.0,0.6297256]
[1745699641789,0.50094384,94269.0,94268.0,0.46742836]
[1745699646695,0.50094384,94269.0,94268.0,0.46742835]
[1745699650500,0.50094384,94269.0,94268.0,0.46742836]
[1745699652400,0.50094384,94269.0,94268.0,0.46742835]
[1745699654098,0.50094384,94269.0,94268.0,0.62972559]
[1745699660503,0.50094384,94269.0,94268.0,0.62972558]
[1745699662708,0.50094384,94269.0,94268.0,0.46742834]
[1745699665004,0.46894384,94269.0,94268.0,0.46742834]
[1745699665396,0.3608,94291.0,94287.0,0.2120504]
[1745699665604,0.06,94288.0,94287.0,0.34862412]
[1745699665910,0.5020481,94288.0,94287.0,0.40163622]
[1745699666104,0.6700481,94288.0,94287.0,0.13657372]
[1745699667008,0.7003481,94288.0,94287.0,0.34862412]
[1745699667608,0.7023481,94288.0,94287.0,0.34862412]
[1745699668600,0.7356481,94288.0,94287.0,0.34862412]
[1745699669003,1.0964481,94288.0,94287.0,0.34862412]
[1745699671111,1.0964481,94288.0,94287.0,0.34862344]
[1745699674108,1.0964481,94288.0,94287.0,0.13657304]
[1745699674513,1.0964481,94288.0,94287.0,0.34862344]
[1745699674714,1.0964481,94288.0,94287.0,0.13657304]
[1745699676520,1.0964481,94288.0,94287.0,0.34862344]
[1745699677016,1.0964481,94288.0,94287.0,0.13657304]
[1745699678112,1.0964481,94288.0,94287.0,0.34862344]
[1745699680210,1.0964481,94288.0,94282.0,0.0319]
[1745699680211,0.2120819,94273.0,94259.0,0.02746159]
[1745699680414,0.8328819,94273.0,94272.0,0.49438134]
[1745699681114,1.0008819,94273.0,94272.0,0.49438134]
[1745699681320,1.0008819,94273.0,94272.0,0.49538134]
[1745699681520,1.0008819,94273.0,94272.0,0.52708134]
[1745699683621,1.0008819,94273.0,94272.0,0.3647841]
[1745699686319,0.428,94273.0,94272.0,0.3647841]
[1745699687326,0.26,94273.0,94272.0,0.3647841]
[1745699690221,0.26,94273.0,94272.0,0.3960841]
[1745699692123,0.26,94273.0,94272.0,0.41265802]
[1745699693524,0.2924,94273.0,94272.0,0.41265802]
[1745699697031,0.5044819,94273.0,94272.0,0.3989241]
[1745699697228,0.6724819,94273.0,94272.0,0.44649843]
[1745699700333,0.6724819,94273.0,94272.0,0.44643802]
[1745699701743,0.4604,94273.0,94272.0,0.44643802]
[1745699702232,0.6724819,94273.0,94272.0,0.44643802]
[1745699707627,0.4604,94273.0,94272.0,0.44643802]
[1745699708132,0.6724819,94273.0,94272.0,0.44643802]
[1745699712036,0.6724819,94273.0,94272.0,0.34959802]
[1745699712735,0.7033819,94273.0,94272.0,0.34959802]
[1745699713440,0.7033819,94273.0,94272.0,0.34965911]
[1745699720951,0.7033819,94273.0,94272.0,0.34927792]
[1745699722734,0.7033819,94273.0,94272.0,0.34885517]
[1745699724242,0.7033819,94273.0,94272.0,0.13677107]
[1745699724445,0.7033819,94273.0,94272.0,0.121]
[1745699725345,0.7033819,94273.0,94272.0,0.12]
[1745699725549,0.7063819,94273.0,94272.0,0.12]
[1745699726045,1.0671819,94273.0,94272.0,0.12]
[1745699727539,0.7063819,94273.0,94272.0,0.12]
[1745699727735,1.0671819,94273.0,94272.0,0.12]
[1745699735839,0.7063819,94273.0,94272.0,0.12]
[1745699736048,1.0671819,94273.0,94272.0,0.12]
[1745699737453,0.7063819,94273.0,94272.0,0.12]
[1745699738746,1.0671819,94273.0,94272.0,0.12]
[1745699740054,0.7063819,94273.0,94272.0,0.12]
[1745699740355,1.0671819,94273.0,94272.0,0.12]
[1745699747247,0.7063819,94273.0,94272.0,0.12]
[1745699747450,0.2121111,94260.0,94255.0,0.0658]
[1745699747658,0.5021111,94260.0,94259.0,0.14]
[1745699747954,0.5021111,94260.0,94259.0,0.14803299]
[1745699748154,0.6701111,94260.0,94259.0,0.14803299]
[1745699748354,0.7010111,94260.0,94259.0,0.16062518]
[1745699750446,0.7010111,94260.0,94259.0,0.19322518]
[1745699756250,1.0618111,94260.0,94259.0,0.19322518]
[1745699758167,1.0648111,94260.0,94259.0,0.19322518]
[1745699762164,0.7040111,94260.0,94259.0,0.19322518]
[1745699762361,1.0648111,94260.0,94259.0,0.19322518]
[1745699766768,1.0648111,94260.0,94240.0,0.14]
[1745699766970,0.2121381,94248.0,94247.0,0.10306518]
[1745699767267,0.5021381,94248.0,94247.0,0.16730518]
[1745699768068,0.5021381,94248.0,94247.0,0.23240518]
[1745699768283,0.6711381,94248.0,94247.0,0.23240518]
[1745699768873,0.6711381,94248.0,94247.0,0.24449987]
[1745699771464,0.6711381,94248.0,94247.0,0.45664027]
[1745699772068,0.6711381,94248.0,94247.0,0.46459042]
[1745699772271,1.0319381,94248.0,94247.0,0.46459042]
[1745699775474,1.0319381,94248.0,94247.0,0.25245002]
[1745699776769,1.0319381,94248.0,94247.0,0.46459042]
[1745699778175,0.6711381,94248.0,94247.0,0.46459042]
[1745699778377,1.0319381,94248.0,94247.0,0.46459042]
[1745699778773,0.6711381,94248.0,94247.0,0.46459042]
[1745699778971,1.0319381,94248.0,94247.0,0.46459042]
[1745699780676,0.6711381,94248.0,94247.0,0.46459042]
[1745699781077,1.0319381,94248.0,94247.0,0.46459042]
[1745699783580,0.6711381,94248.0,94247.0,0.46459042]
[1745699784078,1.0319381,94248.0,94247.0,0.46459042]
[1745699784980,0.459,94248.0,94247.0,0.57069442]
[1745699785279,0.291,94248.0,94247.0,0.73869442]
[1745699785477,0.5031381,94248.0,94247.0,0.73869442]
[1745699785671,0.5031381,94248.0,94247.0,0.63259042]
[1745699786180,0.5031381,94248.0,94247.0,0.46459042]
[1745699790179,0.6711381,94248.0,94247.0,0.46459042]
[1745699791078,0.6711381,94248.0,94247.0,0.22045002]
[1745699791273,0.6711381,94248.0,94247.0,0.18835002]
[1745699791274,0.7043381,94248.0,94247.0,0.18835002]
[1745699791585,0.7043381,94248.0,94247.0,0.17625533]
[1745699791780,0.7680381,94248.0,94247.0,0.17625533]
[1745699792776,0.7680381,94248.0,94247.0,0.18851386]
[1745699794874,1.1288381,94248.0,94247.0,0.18851386]
[1745699795075,1.1288381,94248.0,94247.0,0.40065426]
[1745699796981,0.0530394,94240.0,94232.0,0.0530433]
[1745699797183,0.2121606,94238.0,94237.0,0.42665621]
[1745699797485,0.4821606,94238.0,94237.0,0.45735621]
[1745699797675,0.5133606,94238.0,94237.0,0.45735621]
[1745699797877,0.5133606,94238.0,94237.0,0.48925621]
[1745699798291,0.5143606,94238.0,94237.0,0.48925621]
[1745699799282,0.5143606,94238.0,94237.0,0.49735554]
[1745699802683,0.5143606,94238.0,94237.0,0.3350583]
[1745699803187,0.6823606,94238.0,94237.0,0.3350583]
[1745699806086,0.5143606,94238.0,94237.0,0.3350583]
[1745699807094,0.6823606,94238.0,94237.0,0.3350583]
[1745699809090,0.5143606,94238.0,94237.0,0.3350583]
[1745699810277,0.271,94238.0,94237.0,0.8019743]
[1745699810490,0.271,94238.0,94237.0,1.5825443]
[1745699810882,0.271,94238.0,94237.0,1.3325443]
[1745699811078,0.271,94238.0,94237.0,0.8019743]
[1745699812383,0.27,94238.0,94237.0,0.8019743]
[1745699812988,0.27,94238.0,94237.0,0.85700498]
[1745699813684,0.27,94238.0,94237.0,0.88940498]
[1745699813890,0.4821606,94238.0,94237.0,0.88940498]
[1745699814990,0.27,94238.0,94237.0,0.88940498]
[1745699815189,0.4821606,94238.0,94237.0,0.78328898]
[1745699815392,0.5150606,94238.0,94237.0,0.78328898]
[1745699815691,0.3029,94238.0,94237.0,0.78328898]
[1745699819796,0.5150606,94238.0,94237.0,0.7282583]
[1745699820487,0.5150606,94238.0,94237.0,0.3674583]
[1745699820804,0.5150606,94238.0,94237.0,0.3355583]
[1745699821094,0.6830606,94238.0,94237.0,0.4012783]
[1745699822895,0.4709,94238.0,94237.0,0.4012783]
[1745699825391,0.3029,94238.0,94237.0,0.4012783]
[1745699826198,0.4709,94238.0,94237.0,0.4012783]
[1745699827493,0.4709,94238.0,94237.0,0.56340535]
[1745699828694,0.4709,94238.0,94237.0,0.61844395]
[1745699829599,0.6830606,94238.0,94237.0,0.55272395]
[1745699829800,0.6830606,94238.0,94237.0,0.50030535]
[1745699830202,0.4709,94238.0,94237.0,0.3381783]
[1745699832006,0.6830606,94238.0,94237.0,0.3381783]
[1745699834395,0.6830606,94238.0,94237.0,0.2724583]
[1745699834598,0.6830606,94238.0,94237.0,0.0602977]
[1745699834795,0.6830606,94238.0,94237.0,0.2724606]
[1745699840115,0.6830606,94238.0,94237.0,0.0602977]
[1745699841819,0.6830606,94238.0,94237.0,0.2724606]
[1745699852522,0.6830606,94238.0,94237.0,0.3049606]
[1745699854331,0.6830606,94238.0,94237.0,0.2724606]
[1745699854625,0.6830606,94238.0,94237.0,0.0602977]
[1745699854831,0.6830606,94238.0,94237.0,0.2724606]
[1745699858433,0.6830606,94238.0,94237.0,0.3056606]
[1745699861031,0.6830606,94238.0,94236.0,0.06572]
[1745699861032,0.2121764,94231.0,94225.0,0.28076564]
[1745699861230,0.8429764,94231.0,94230.0,0.32215309]
[1745699861429,0.8429764,94231.0,94230.0,0.53433179]
[1745699862133,1.0109764,94231.0,94230.0,0.53433179]
[1745699863034,1.0109764,94231.0,94230.0,0.53533179]
[1745699863232,1.0109764,94231.0,94230.0,0.3731787]
[1745699863431,1.0109764,94231.0,94230.0,0.38514506]
[1745699863630,1.0119764,94231.0,94230.0,0.38414506]
[1745699864537,0.6511764,94231.0,94230.0,0.38414506]
[1745699864728,1.0119764,94231.0,94230.0,0.38414506]
[1745699865235,1.0119764,94231.0,94230.0,0.39224041]
[1745699870130,1.0119764,94231.0,94230.0,0.42494041]
[1745699872833,0.6511764,94231.0,94230.0,0.42494041]
[1745699873139,1.0119764,94231.0,94230.0,0.42494041]
[1745699873744,1.0119764,94231.0,94230.0,0.21276171]
[1745699874428,1.0119764,94231.0,94230.0,0.42494041]
[1745699876136,0.6511764,94231.0,94230.0,0.42494041]
[1745699876333,1.0119764,94231.0,94230.0,0.42494041]
[1745699879034,1.0427764,94231.0,94230.0,0.42494041]
[1745699885235,1.0427764,94231.0,94230.0,0.21276171]
[1745699885636,1.0427764,94231.0,94230.0,0.42494041]
[1745699892645,0.439,94231.0,94230.0,0.42494041]
[1745699892843,0.03,94258.0,94231.0,0.0530441]
[1745699893041,0.25,94258.0,94246.0,0.3608]
[1745699893240,0.2651712,94252.0,94251.0,0.2121193]
[1745699893443,0.5151712,94252.0,94251.0,0.3721193]
[1745699894851,0.5151712,94252.0,94251.0,0.16]
[1745699895047,0.5151712,94252.0,94251.0,0.3721314]
[1745699895451,0.5161712,94252.0,94251.0,0.3721314]
[1745699896241,0.6841712,94252.0,94251.0,0.3721314]
[1745699896442,0.6841712,94252.0,94251.0,0.4039314]
[1745699896849,1.0449712,94252.0,94251.0,0.4039314]
[1745699903649,1.0449712,94252.0,94251.0,0.16]
[1745699904259,1.0449712,94252.0,94251.0,0.19]
[1745699904458,1.0449712,94252.0,94251.0,0.4021314]
[1745699905555,1.0449712,94252.0,94251.0,0.19]
[1745699905951,1.0449712,94252.0,94251.0,0.4021314]
[1745699908461,0.6841712,94252.0,94251.0,0.4021314]
[1745699908661,1.0449712,94252.0,94251.0,0.4021314]
[1745699915466,1.0449712,94252.0,94251.0,0.19]
[1745699916368,0.6841712,94252.0,94251.0,0.19]
[1745699916669,1.0449712,94252.0,94251.0,0.19]
[1745699916865,1.0449712,94252.0,94251.0,0.4021314]
[1745699917065,1.0449712,94252.0,94251.0,0.19]
[1745699917657,0.6841712,94252.0,94251.0,0.19]
[1745699917857,1.0449712,94252.0,94251.0,0.19]
[1745699919064,0.6841712,94252.0,94251.0,0.19]
[1745699919268,1.1096712,94252.0,94251.0,0.19]
[1745699919770,1.1096712,94252.0,94251.0,0.4021314]
[1745699925777,0.7488712,94252.0,94251.0,0.4021314]
[1745699925984,1.1096712,94252.0,94251.0,0.4021314]
[1745699926484,1.1096712,94252.0,94251.0,0.19]
[1745699926883,1.1096712,94252.0,94251.0,0.4021314]
[1745699928284,0.7488712,94252.0,94251.0,0.4021314]
[1745699928480,1.1096712,94252.0,94251.0,0.19]
[1745699929787,1.1096712,94252.0,94251.0,0.4021314]
[1745699939192,0.7488712,94252.0,94251.0,0.4021314]
[1745699939381,1.1096712,94252.0,94251.0,0.4021314]
[1745699942395,1.1096712,94252.0,94251.0,0.4337314]
[1745699943492,0.7488712,94252.0,94251.0,0.4337314]
[1745699943693,1.1096712,94252.0,94251.0,0.4337314]
[1745699946094,0.7488712,94252.0,94251.0,0.4337314]
[1745699946295,1.1096712,94252.0,94251.0,0.4337314]
[1745699949397,0.7488712,94252.0,94251.0,0.4337314]
[1745699949600,1.1096712,94252.0,94251.0,0.4337314]
[1745699954494,0.7488712,94252.0,94251.0,0.4337314]
[1745699954698,1.1096712,94252.0,94251.0,0.4337314]
[1745699956403,0.7488712,94252.0,94251.0,0.4337314]
[1745699956595,1.1096712,94252.0,94251.0,0.4337314]
[1745699964302,1.1096712,94252.0,94251.0,0.2216]
[1745699964508,1.1096712,94252.0,94251.0,0.19]
[1745699964808,1.1096712,94252.0,94251.0,0.4021314]
[1745699965403,1.1096712,94252.0,94251.0,0.16]
[1745699969409,0.7488712,94252.0,94251.0,0.16]
[1745699969606,1.1096712,94252.0,94251.0,0.16]
[1745699972612,0.7488712,94252.0,94251.0,0.16]
[1745699972910,1.1096712,94252.0,94251.0,0.16]
[1745699977503,0.7488712,94252.0,94251.0,0.16]
[1745699977816,1.1096712,94252.0,94251.0,0.16]
[1745699980612,0.7488712,94252.0,94251.0,0.16]
[1745699980810,1.1096712,94252.0,94251.0,0.16]
[1745699982009,1.1096712,94252.0,94251.0,0.191]
[1745699983013,0.7488712,94252.0,94251.0,0.191]
[1745699983215,1.1096712,94252.0,94251.0,0.191]
[1745699984017,0.7488712,94252.0,94251.0,0.191]
[1745699984217,1.1096712,94252.0,94251.0,0.191]
[1745699984914,0.7488712,94252.0,94251.0,0.191]
[1745699985306,1.1096712,94252.0,94251.0,0.191]
[1745699985918,0.7488712,94252.0,94251.0,0.191]
[1745699986214,1.1096712,94252.0,94251.0,0.191]
[1745699987719,0.7488712,94252.0,94251.0,0.191]
[1745699987918,1.1096712,94252.0,94251.0,0.191]
[1745699988622,0.7488712,94252.0,94251.0,0.191]
[1745699988814,1.1096712,94252.0,94251.0,0.191]
[1745699990123,1.1096712,94252.0,94251.0,0.4031314]
[1745699990419,1.1341712,94252.0,94251.0,0.4031314]
[1745699991622,1.1025712,94252.0,94251.0,0.4031314]
[1745699991809,0.4435,94252.0,94251.0,0.4031314]
[1745699992015,0.2120981,94266.0,94265.0,0.2651199]
[1745699992214,0.4820981,94266.0,94265.0,0.4051199]
[1745699993114,0.4860981,94266.0,94265.0,0.4051199]
[1745699993521,0.4860981,94266.0,94265.0,0.4683199]
[1745699994722,0.4860981,94266.0,94265.0,0.48721672]
[1745699995320,0.4830981,94266.0,94265.0,0.48721672]
[1745700019630,0.5147981,94266.0,94265.0,0.48721672]
[1745700020139,0.6827981,94266.0,94265.0,0.48721672]
[1745700020530,0.6827981,94266.0,94265.0,0.45701672]
[1745700027142,0.5147981,94266.0,94265.0,0.45701672]
[1745700028147,0.6827981,94266.0,94265.0,0.45701672]
[1745700034044,0.4707,94266.0,94265.0,0.45701672]
[1745700034641,0.4707,94266.0,94265.0,0.51213331]
[1745700035249,0.3027,94266.0,94265.0,0.68013331]
[1745700036446,0.3027,94266.0,94265.0,0.62501672]
[1745700036651,0.3027,94266.0,94265.0,0.68012226]
[1745700037150,0.3027,94266.0,94265.0,0.51212226]
[1745700039047,0.3027,94266.0,94265.0,0.54442226]
[1745700041548,0.3027,94266.0,94265.0,0.48931672]
[1745700043745,0.3027,94266.0,94265.0,0.54439036]
[1745700045554,0.3027,94266.0,94265.0,0.48931672]
[1745700064767,0.3027,94266.0,94265.0,0.65146981]
[1745700067471,0.3027,94266.0,94265.0,0.70656759]
[1745700069369,0.3027,94266.0,94265.0,0.5444145]
[1745700078984,0.3027,94266.0,94265.0,0.6098945]
[1745700081184,0.4707,94266.0,94265.0,0.6098945]
[1745700082085,0.3027,94266.0,94265.0,0.6098945]
[1745700086088,0.4707,94266.0,94265.0,0.6098945]
[1745700087088,0.3027,94266.0,94265.0,0.6098945]
[1745700088088,0.4707,94266.0,94265.0,0.6098945]
[1745700090592,0.4707,94266.0,94265.0,0.77219571]
[1745700090891,0.4707,94266.0,94265.0,0.71709793]
[1745700094293,0.4707,94266.0,94265.0,0.55479672]
[1745700095191,0.4707,94266.0,94265.0,0.5705851]
[1745700098487,0.4707,94266.0,94265.0,0.50512392]
[1745700098692,0.4707,94266.0,94265.0,0.57060392]
[1745700100696,0.4707,94266.0,94265.0,0.62573282]
[1745700102191,0.4707,94266.0,94265.0,0.64155572]
[1745700102392,0.4707,94266.0,94265.0,0.62574852]
[1745700104094,0.4707,94266.0,94265.0,0.78804978]
[1745700107490,0.4707,94266.0,94265.0,0.62574852]
[1745700107797,0.4707,94266.0,94265.0,0.62574333]